Workbook

Sheet Inventory List
C1: Convenience Store Inventory List | K1: TRUE
B4: Column1 | C4: Inventory ID | D4: Name | E4: Description | F4: Unit Price | G4: Quantity in Stock | H4: Inventory Value | I4: Reorder Level | J4: Reorder Time in Days | K4: Quantity in Reorder | L4: 停产？
B5: =(tblInventoryList[[#This Row],[Quantity in Stock]]<=tblInventoryList[[#This Row],[Reorder Level]])*(tblInventoryList[[#This Row],[停产？]]="")*valHighlight -> 1 | C5: IN0001 | D5: Item 1 | E5: Desc 1 | F5: 51 | G5: 25 | H5: =tblInventoryList[[#This Row],[Unit Price]]*tblInventoryList[[#This Row],[Quantity in Stock]] -> 1275 | I5: 29 | J5: 13 | K5: 50
B6: =(tblInventoryList[[#This Row],[Quantity in Stock]]<=tblInventoryList[[#This Row],[Reorder Level]])*(tblInventoryList[[#This Row],[停产？]]="")*valHighlight -> 1 | C6: IN0002 | D6: Item 2 | E6: Desc 2 | F6: 93 | G6: 132 | H6: =tblInventoryList[[#This Row],[Unit Price]]*tblInventoryList[[#This Row],[Quantity in Stock]] -> 12276 | I6: 231 | J6: 4 | K6: 50
B7: =(tblInventoryList[[#This Row],[Quantity in Stock]]<=tblInventoryList[[#This Row],[Reorder Level]])*(tblInventoryList[[#This Row],[停产？]]="")*valHighlight -> 0 | C7: IN0003 | D7: Item 3 | E7: Desc 3 | F7: 57 | G7: 151 | H7: =tblInventoryList[[#This Row],[Unit Price]]*tblInventoryList[[#This Row],[Quantity in Stock]] -> 8607 | I7: 114 | J7: 11 | K7: 150
B8: =(tblInventoryList[[#This Row],[Quantity in Stock]]<=tblInventoryList[[#This Row],[Reorder Level]])*(tblInventoryList[[#This Row],[停产？]]="")*valHighlight -> 0 | C8: IN0004 | D8: Item 4 | E8: Desc 4 | F8: 19 | G8: 186 | H8: =tblInventoryList[[#This Row],[Unit Price]]*tblInventoryList[[#This Row],[Quantity in Stock]] -> 3534 | I8: 158 | J8: 6 | K8: 50
B9: =(tblInventoryList[[#This Row],[Quantity in Stock]]<=tblInventoryList[[#This Row],[Reorder Level]])*(tblInventoryList[[#This Row],[停产？]]="")*valHighlight -> 0 | C9: IN0005 | D9: Item 5 | E9: Desc 5 | F9: 75 | G9: 62 | H9: =tblInventoryList[[#This Row],[Unit Price]]*tblInventoryList[[#This Row],[Quantity in Stock]] -> 4650 | I9: 39 | J9: 12 | K9: 50
B10: =(tblInventoryList[[#This Row],[Quantity in Stock]]<=tblInventoryList[[#This Row],[Reorder Level]])*(tblInventoryList[[#This Row],[停产？]]="")*valHighlight -> 1 | C10: IN0006 | D10: Item 6 | E10: Desc 6 | F10: 11 | G10: 5 | H10: =tblInventoryList[[#This Row],[Unit Price]]*tblInventoryList[[#This Row],[Quantity in Stock]] -> 55 | I10: 9 | J10: 13 | K10: 150
B11: =(tblInventoryList[[#This Row],[Quantity in Stock]]<=tblInventoryList[[#This Row],[Reorder Level]])*(tblInventoryList[[#This Row],[停产？]]="")*valHighlight -> 1 | C11: IN0007 | D11: Item 7 | E11: Desc 7 | F11: 56 | G11: 58 | H11: =tblInventoryList[[#This Row],[Unit Price]]*tblInventoryList[[#This Row],[Quantity in Stock]] -> 3248 | I11: 109 | J11: 7 | K11: 100
B12: =(tblInventoryList[[#This Row],[Quantity in Stock]]<=tblInventoryList[[#This Row],[Reorder Level]])*(tblInventoryList[[#This Row],[停产？]]="")*valHighlight -> 1 | C12: IN0008 | D12: Item 8 | E12: Desc 8 | F12: 38 | G12: 101 | H12: =tblInventoryList[[#This Row],[Unit Price]]*tblInventoryList[[#This Row],[Quantity in Stock]] -> 3838 | I12: 162 | J12: 3 | K12: 100
B13: =(tblInventoryList[[#This Row],[Quantity in Stock]]<=tblInventoryList[[#This Row],[Reorder Level]])*(tblInventoryList[[#This Row],[停产？]]="")*valHighlight -> 0 | C13: IN0009 | D13: Item 9 | E13: Desc 9 | F13: 59 | G13: 122 | H13: =tblInventoryList[[#This Row],[Unit Price]]*tblInventoryList[[#This Row],[Quantity in Stock]] -> 7198 | I13: 82 | J13: 3 | K13: 150
B14: =(tblInventoryList[[#This Row],[Quantity in Stock]]<=tblInventoryList[[#This Row],[Reorder Level]])*(tblInventoryList[[#This Row],[停产？]]="")*valHighlight -> 1 | C14: IN0010 | D14: Item 10 | E14: Desc 10 | F14: 50 | G14: 175 | H14: =tblInventoryList[[#This Row],[Unit Price]]*tblInventoryList[[#This Row],[Quantity in Stock]] -> 8750 | I14: 283 | J14: 8 | K14: 150
B15: =(tblInventoryList[[#This Row],[Quantity in Stock]]<=tblInventoryList[[#This Row],[Reorder Level]])*(tblInventoryList[[#This Row],[停产？]]="")*valHighlight -> 1 | C15: IN0011 | D15: Item 11 | E15: Desc 11 | F15: 59 | G15: 176 | H15: =tblInventoryList[[#This Row],[Unit Price]]*tblInventoryList[[#This Row],[Quantity in Stock]] -> 10384 | I15: 229 | J15: 1 | K15: 100
B16: =(tblInventoryList[[#This Row],[Quantity in Stock]]<=tblInventoryList[[#This Row],[Reorder Level]])*(tblInventoryList[[#This Row],[停产？]]="")*valHighlight -> 1 | C16: IN0012 | D16: Item 12 | E16: Desc 12 | F16: 18 | G16: 22 | H16: =tblInventoryList[[#This Row],[Unit Price]]*tblInventoryList[[#This Row],[Quantity in Stock]] -> 396 | I16: 36 | J16: 12 | K16: 50
B17: =(tblInventoryList[[#This Row],[Quantity in Stock]]<=tblInventoryList[[#This Row],[Reorder Level]])*(tblInventoryList[[#This Row],[停产？]]="")*valHighlight -> 1 | C17: IN0013 | D17: Item 13 | E17: Desc 13 | F17: 26 | G17: 72 | H17: =tblInventoryList[[#This Row],[Unit Price]]*tblInventoryList[[#This Row],[Quantity in Stock]] -> 1872 | I17: 102 | J17: 9 | K17: 100
B18: =(tblInventoryList[[#This Row],[Quantity in Stock]]<=tblInventoryList[[#This Row],[Reorder Level]])*(tblInventoryList[[#This Row],[停产？]]="")*valHighlight -> 1 | C18: IN0014 | D18: Item 14 | E18: Desc 14 | F18: 42 | G18: 62 | H18: =tblInventoryList[[#This Row],[Unit Price]]*tblInventoryList[[#This Row],[Quantity in Stock]] -> 2604 | I18: 83 | J18: 2 | K18: 100
B19: =(tblInventoryList[[#This Row],[Quantity in Stock]]<=tblInventoryList[[#This Row],[Reorder Level]])*(tblInventoryList[[#This Row],[停产？]]="")*valHighlight -> 0 | C19: IN0015 | D19: Item 15 | E19: Desc 15 | F19: 32 | G19: 46 | H19: =tblInventoryList[[#This Row],[Unit Price]]*tblInventoryList[[#This Row],[Quantity in Stock]] -> 1472 | I19: 23 | J19: 15 | K19: 50
B20: =(tblInventoryList[[#This Row],[Quantity in Stock]]<=tblInventoryList[[#This Row],[Reorder Level]])*(tblInventoryList[[#This Row],[停产？]]="")*valHighlight -> 1 | C20: IN0016 | D20: Item 16 | E20: Desc 16 | F20: 90 | G20: 96 | H20: =tblInventoryList[[#This Row],[Unit Price]]*tblInventoryList[[#This Row],[Quantity in Stock]] -> 8640 | I20: 180 | J20: 3 | K20: 50
B21: =(tblInventoryList[[#This Row],[Quantity in Stock]]<=tblInventoryList[[#This Row],[Reorder Level]])*(tblInventoryList[[#This Row],[停产？]]="")*valHighlight -> 0 | C21: IN0017 | D21: Item 17 | E21: Desc 17 | F21: 97 | G21: 57 | H21: =tblInventoryList[[#This Row],[Unit Price]]*tblInventoryList[[#This Row],[Quantity in Stock]] -> 5529 | I21: 98 | J21: 12 | K21: 50 | L21: Yes
B22: =(tblInventoryList[[#This Row],[Quantity in Stock]]<=tblInventoryList[[#This Row],[Reorder Level]])*(tblInventoryList[[#This Row],[停产？]]="")*valHighlight -> 1 | C22: IN0018 | D22: Item 18 | E22: Desc 18 | F22: 12 | G22: 6 | H22: =tblInventoryList[[#This Row],[Unit Price]]*tblInventoryList[[#This Row],[Quantity in Stock]] -> 72 | I22: 7 | J22: 13 | K22: 50
B23: =(tblInventoryList[[#This Row],[Quantity in Stock]]<=tblInventoryList[[#This Row],[Reorder Level]])*(tblInventoryList[[#This Row],[停产？]]="")*valHighlight -> 1 | C23: IN0019 | D23: Item 19 | E23: Desc 19 | F23: 82 | G23: 143 | H23: =tblInventoryList[[#This Row],[Unit Price]]*tblInventoryList[[#This Row],[Quantity in Stock]] -> 11726 | I23: 164 | J23: 12 | K23: 150
B24: =(tblInventoryList[[#This Row],[Quantity in Stock]]<=tblInventoryList[[#This Row],[Reorder Level]])*(tblInventoryList[[#This Row],[停产？]]="")*valHighlight -> 0 | C24: IN0020 | D24: Item 20 | E24: Desc 20 | F24: 16 | G24: 124 | H24: =tblInventoryList[[#This Row],[Unit Price]]*tblInventoryList[[#This Row],[Quantity in Stock]] -> 1984 | I24: 113 | J24: 14 | K24: 50
B25: =(tblInventoryList[[#This Row],[Quantity in Stock]]<=tblInventoryList[[#This Row],[Reorder Level]])*(tblInventoryList[[#This Row],[停产？]]="")*valHighlight -> 0 | C25: IN0021 | D25: Item 21 | E25: Desc 21 | F25: 19 | G25: 112 | H25: =tblInventoryList[[#This Row],[Unit Price]]*tblInventoryList[[#This Row],[Quantity in Stock]] -> 2128 | I25: 75 | J25: 11 | K25: 50
B26: =(tblInventoryList[[#This Row],[Quantity in Stock]]<=tblInventoryList[[#This Row],[Reorder Level]])*(tblInventoryList[[#This Row],[停产？]]="")*valHighlight -> 0 | C26: IN0022 | D26: Item 22 | E26: Desc 22 | F26: 24 | G26: 182 | H26: =tblInventoryList[[#This Row],[Unit Price]]*tblInventoryList[[#This Row],[Quantity in Stock]] -> 4368 | I26: 132 | J26: 15 | K26: 150
B27: =(tblInventoryList[[#This Row],[Quantity in Stock]]<=tblInventoryList[[#This Row],[Reorder Level]])*(tblInventoryList[[#This Row],[停产？]]="")*valHighlight -> 0 | C27: IN0023 | D27: Item 23 | E27: Desc 23 | F27: 29 | G27: 106 | H27: =tblInventoryList[[#This Row],[Unit Price]]*tblInventoryList[[#This Row],[Quantity in Stock]] -> 3074 | I27: 142 | J27: 1 | K27: 150 | L27: Yes
B28: =(tblInventoryList[[#This Row],[Quantity in Stock]]<=tblInventoryList[[#This Row],[Reorder Level]])*(tblInventoryList[[#This Row],[停产？]]="")*valHighlight -> 0 | C28: IN0024 | D28: Item 24 | E28: Desc 24 | F28: 75 | G28: 173 | H28: =tblInventoryList[[#This Row],[Unit Price]]*tblInventoryList[[#This Row],[Quantity in Stock]] -> 12975 | I28: 127 | J28: 9 | K28: 100
B29: =(tblInventoryList[[#This Row],[Quantity in Stock]]<=tblInventoryList[[#This Row],[Reorder Level]])*(tblInventoryList[[#This Row],[停产？]]="")*valHighlight -> 0 | C29: IN0025 | D29: Item 25 | E29: Desc 25 | F29: 14 | G29: 28 | H29: =tblInventoryList[[#This Row],[Unit Price]]*tblInventoryList[[#This Row],[Quantity in Stock]] -> 392 | I29: 21 | J29: 8 | K29: 50
